[Event "CAT-chT 2020"]
[Site "Catalonia"]
[Date "2020.01.18"]
[Round "1.4"]
[White "Mestre Bellido, Hector"]
[Black "Mieles Palau, Daniel"]
[Result "0-1"]
[ECO "B37"]
[WhiteElo "2285"]
[BlackElo "2374"]
[Annotator "RC"]
[PlyCount "72"]
[EventDate "2020.01.18"]
[EventType "team-tourn"]
[EventCountry "ESP"]
[SourceTitle "playchess.com"]
[Source "ChessBase"]
[SourceQuality "1"]
[TimeControl "5400+30"]

1. Nf3 {[%emt 0:00:00]} c5 {[%emt 0:00:00]} 2. c4 {[%emt 0:00:00]} g6 {[%emt 0:02:40]} 3. Nc3 {[%emt 0:00:14]} Bg7 {[%emt 0:00:27]} 4. d4 {[%emt 0:00:10]} cxd4 {[%emt 0:00:37]} 5. Nxd4 {[%emt 0:00:02]} Nc6 {[%emt 0:00:36]} 6. Nc2 {[%emt 0:01:10]} d6 {[%emt 0:03:00]} 7. e4 {[%emt 0:00:09]} Bxc3+ {[%emt 0:01:33]} 8. bxc3 {[%emt 0:00:06]} Nf6 {[%emt 0:00:36]} 9. f3 {[%emt 0:15:58]} O-O {[%emt 0:06:39]} 10. Be2 {[%emt 0:05:28]} Be6 {[%emt 0:09:01]} 11. Bg5 {[%emt 0:06:59]} Rc8 {[%emt 0:08:26]} 12. Ne3 {[%emt 0:08:12]} Qa5 {[%emt 0:15:45]} 13. Nd5 {[%emt 0:06:32]} Bxd5 {[%emt 0:00:07]} 14. cxd5 {[%emt 0:00:58]} Ne5 {[%emt 0:00:32]} 15. O-O {[%emt 0:10:35]} Qxc3 {[%emt 0:08:59]} 16. Rb1 {[%emt 0:00:42]} b6 {[%emt 0:02:19]} 17. Qa4 {[%emt 0:00:24]} Ned7 {[%emt 0:13:18]} 18. Rfc1 {[%emt 0:13:07]} Qe5 {[%emt 0:00:07]} 19. Bh6 {[%emt 0:04:40]} Rxc1+ {[%emt 0:07:06]} 20. Rxc1 {[%emt 0:00:01]} Nc5 {[%emt 0:03:06]} 21. Rxc5 {[%emt 0:05:28]} dxc5 {[%emt 0:02:14]} 22. Bxf8 {[%emt 0:00:02]} Kxf8 {[%emt 0:00:01]} 23. Qxa7 {[%emt 0:00:06]} Qd4+ {[%emt 0:00:51]} 24. Kf1 {[%emt 0:00:02]} c4 {[%emt 0:00:11]} 25. Qa4 {[%emt 0:07:49]} Qa1+ {[%emt 0:00:07]} 26. Qd1 {[%emt 0:00:02]} Qxa2 {[%emt 0:00:19]} 27. d6 {[%emt 0:03:01]} c3 {[%emt 0:05:40]} 28. e5 {[%emt 0:03:09]} Nd7 {[%emt 0:00:47]} 29. dxe7+ {[%emt 0:06:06]} Kxe7 {[%emt 0:00:06]} 30. Bb5 {[%emt 0:03:09]} Nxe5 {[%emt 0:01:03]} 31. Qe1 {[%emt 0:00:04]} Qd5 {[%emt 0:02:50]} 32. Ba4 {[%emt 0:00:02]} Qc4+ {[%emt 0:00:38]} 33. Kg1 {[%emt 0:01:11]} Qd4+ {[%emt 0:00:44]} 34. Kf1 {[%emt 0:00:15]} Kf6 {[%emt 0:00:32]} 35. Bc2 {[%emt 0:00:09]} Nc4 {[%emt 0:00:05]} 36. Qe2 {[%emt 0:01:11]} Nd2+ {[%emt 0:00:07]} 0-1

[Event "CAT-chT 2020"]
[Site "Catalonia"]
[Date "2020.01.18"]
[Round "1.10"]
[White "Llaneza Vega, Patricia"]
[Black "Valencia Jimenez, Jose"]
[Result "1-0"]
[ECO "B15"]
[WhiteElo "2152"]
[BlackElo "2027"]
[Annotator "RC"]
[PlyCount "59"]
[EventDate "2020.01.18"]
[EventType "team-tourn"]
[EventCountry "ESP"]
[SourceTitle "playchess.com"]
[Source "ChessBase"]
[SourceQuality "1"]
[TimeControl "5400+30"]

1. e4 {[%emt 0:00:00]} g6 {[%emt 0:00:00]} 2. d4 {[%emt 0:00:00]} Bg7 {[%emt 0:00:00]} 3. Nc3 {[%emt 0:00:00]} c6 {[%emt 0:00:00]} 4. Nf3 {[%emt 0:00:21]} d5 {[%emt 0:00:08]} 5. h3 {[%emt 0:03:10]} dxe4 {[%emt 0:00:16]} 6. Nxe4 {[%emt 0:00:05]} Nd7 {[%emt 0:00:05]} 7. Bd3 {[%emt 0:02:30]} Ngf6 {[%emt 0:00:23]} 8. Nxf6+ {[%emt 0:00:10]} Nxf6 {[%emt 0:00:07]} 9. O-O {[%emt 0:00:07]} O-O {[%emt 0:00:07]} 10. Re1 {[%emt 0:05:05]} Qc7 {[%emt 0:03:48]} 11. Bg5 {[%emt 0:06:09]} b6 {[%emt 0:12:40]} 12. Qe2 {[%emt 0:09:55]} e6 {[%emt 0:05:42]} 13. Qe5 {[%emt 0:06:22]} Nd5 {[%emt 0:13:33]} 14. Qxc7 {[%emt 0:06:51]} Nxc7 {[%emt 0:00:05]} 15. c4 {[%emt 0:00:40]} Bb7 {[%emt 0:04:03]} 16. Rad1 {[%emt 0:02:47]} h6 {[%emt 0:09:20]} 17. Bf4 {[%emt 0:02:57]} Rac8 {[%emt 0:02:55]} 18. Ne5 {[%emt 0:04:41]} g5 {[%emt 0:07:00]} 19. Bh2 {[%emt 0:02:16]} Rfd8 {[%emt 0:19:01]} 20. Be4 {[%emt 0:06:29]} Ne8 {[%emt 0:01:10]} 21. c5 {[%emt 0:00:51]} Nf6 {[%emt 0:03:59]} 22. Bf3 {[%emt 0:00:40]} Nd7 {[%emt 0:12:00]} 23. Nc4 {[%emt 0:01:49]} Bf8 {[%emt 0:02:41]} 24. Bd6 {[%emt 0:04:32]} Bxd6 {[%emt 0:01:53]} 25. Nxd6 {[%emt 0:00:06]} Rc7 {[%emt 0:00:01]} 26. Nxb7 {[%emt 0:03:28]} Rxb7 {[%emt 0:00:14]} 27. Bxc6 {[%emt 0:00:05]} Rc7 {[%emt 0:00:13]} 28. Ba4 {[%emt 0:00:11]} bxc5 {[%emt 0:00:10]} 29. dxc5 {[%emt 0:00:23]} Rdc8 {[%emt 0:02:22]} 30. Bxd7 {[%emt 0:00:43]} 1-0

[Event "CAT-chT 2020"]
[Site "Catalonia"]
[Date "2020.01.25"]
[Round "2.9"]
[White "Guasch Figuerola, Agusti"]
[Black "Llopis de Aysa, Manuel"]
[Result "1-0"]
[ECO "A36"]
[WhiteElo "2004"]
[BlackElo "2066"]
[Annotator "NA RC"]
[PlyCount "167"]
[EventDate "2020.01.18"]
[EventType "team-tourn"]
[EventCountry "ESP"]
[SourceTitle "playchess.com"]
[Source "ChessBase"]
[SourceQuality "1"]
[TimeControl "5400+30"]

1. c4 g6 2. g3 Bg7 3. Bg2 e5 4. Nc3 d6 5. d3 Ne7 6. e4 c5 7. Nge2 Nbc6 8. a3 a5 9. O-O O-O 10. Bd2 Rb8 11. Nd5 Nxd5 12. cxd5 Nd4 13. b4 Nxe2+ 14. Qxe2 b6 15. Rab1 axb4 16. axb4 Bd7 17. Rb2 Qc7 18. h4 Rfc8 19. Rc1 Ra8 20. Kh2 h5 21. Be3 f5 22. Ra2 Kh7 23. bxc5 bxc5 24. Rca1 Rab8 25. Ra7 Rb7 26. Qa2 f4 27. Rxb7 fxg3+ 28. fxg3 Qxb7 29. Rb1 Qc7 30. Bg5 Bg4 31. Rb2 Rf8 32. Qb1 Rf7 33. Rb6 Rf2 34. Be3 Re2 35. Bg5 Qf7 36. Rb2 Qf2 37. Rxe2 Qxe2 38. Qf1 Qxf1 39. Bxf1 Bf8 40. Kg2 Kg7 41. Kf2 Kf7 42. Be2 Bd7 43. Ke3 Be7 44. Bd1 Bxg5+ 45. hxg5 Ke7 46. Kd2 Kd8 47. Kc3 Kc7 48. Be2 Kb6 49. Bd1 Ka5 50. Be2 Ka4 51. Bf1 Bg4 52. Bg2 Ka3 53. Bf1 Ka4 54. Bg2 Ka3 55. Bf1 Bd7 56. Be2 Ka2 57. Kc2 Bg4 58. Bf1 Bf3 59. Bh3 Bg4 60. Bf1 Ka3 61. Kc3 Bd7 62. Bg2 Ka2 63. Kc2 Ba4+ 64. Kc3 Kb1 65. Bh3 Kc1 66. Bc8 Kd1 67. Bb7 Be8 68. Bc6 Bf7 69. Bd7 Ke2 70. Kc4 Ke3 71. Be6 Be8 72. Bc8 Kf3 73. Bb7 Bf7 74. Kb5 Kxg3 75. Kc6 h4 76. Bc8 h3 77. Bxh3 Kxh3 78. Kxd6 Be8 79. Kxe5 Kg4 80. Kf6 Kf4 81. e5 Ke3 82. e6 Kxd3 83. d6 c4 84. d7 1-0

[Event "CAT-chT 2020"]
[Site "Catalonia"]
[Date "2020.01.25"]
[Round "2.10"]
[White "Magallanes, Gustavo"]
[Black "Boldu Soto, Roger"]
[Result "0-1"]
[ECO "C00"]
[WhiteElo "2001"]
[BlackElo "2060"]
[Annotator "NA RC"]
[PlyCount "82"]
[EventDate "2020.01.18"]
[EventType "team-tourn"]
[EventCountry "ESP"]
[SourceTitle "playchess.com"]
[Source "ChessBase"]
[SourceQuality "1"]
[TimeControl "5400+30"]

1. e4 e6 2. d3 d5 3. Qe2 d4 4. f4 c5 5. Nf3 Nc6 6. g3 Nf6 7. Bg2 Be7 8. O-O b6 9. c4 dxc3 10. bxc3 e5 11. Na3 exf4 12. gxf4 Bg4 13. h3 Bh5 14. Kh1 O-O 15. Nc4 Qc8 16. Qe3 Rd8 17. Bb2 b5 18. Nce5 Na5 19. Rac1 Ne8 20. Ne1 f6 21. N5f3 Bf7 22. a3 Nd6 23. Rc2 Rb8 24. Nh4 Be6 25. Qg3 f5 26. c4 Bf8 27. Be5 bxc4 28. dxc4 Rb3 29. Rc3 Rxc3 30. Qxc3 Naxc4 31. exf5 Bf7 32. f6 g6 33. Nd3 Ne3 34. Rg1 Nxg2 35. Kxg2 Qc6+ 36. Kh2 Ne4 37. Qc2 c4 38. Rg2 Rxd3 39. Nf5 Nxf6 40. Nd4 Qa6 41. f5 Bd6 0-1

[Event "CAT-chT 2020"]
[Site "Catalonia"]
[Date "2020.02.01"]
[Round "3.6"]
[White "Ibanez Tarradellas, Eduardo"]
[Black "Vehi Bach, Victor Manuel"]
[Result "1/2-1/2"]
[ECO "A45"]
[WhiteElo "2175"]
[BlackElo "2316"]
[Annotator "RC"]
[PlyCount "55"]
[EventDate "2020.01.18"]
[EventType "team-tourn"]
[EventCountry "ESP"]
[SourceTitle "playchess.com"]
[Source "ChessBase"]
[SourceQuality "1"]
[TimeControl "5400+30"]

1. d4 {[%emt 0:00:00]} Nf6 {[%emt 0:00:00]} 2. Bg5 {[%emt 0:00:00]} d5 {[%emt 0:00:00]} 3. Nd2 {[%emt 0:00:13]} c5 {[%emt 0:00:54]} 4. Bxf6 {[%emt 0:04:35]} gxf6 {[%emt 0:01:37]} 5. dxc5 {[%emt 0:02:12]} Qa5 {[%emt 0:12:46]} 6. c3 {[%emt 0:03:39]} Qxc5 {[%emt 0:00:27]} 7. e4 {[%emt 0:02:26]} dxe4 {[%emt 0:05:08]} 8. Nxe4 {[%emt 0:00:11]} Qe5 {[%emt 0:13:37]} 9. Qe2 {[%emt 0:00:56]} Bf5 {[%emt 0:09:34]} 10. Ng3 {[%emt 0:02:48]} Bg6 {[%emt 0:00:38]} 11. Nf3 {[%emt 0:07:51]} Qxe2+ {[%emt 0:00:10]} 12. Bxe2 {[%emt 0:00:12]} Nc6 {[%emt 0:00:59]} 13. O-O {[%emt 0:01:30]} e6 {[%emt 0:05:46]} 14. Rad1 {[%emt 0:01:03]} Be7 {[%emt 0:01:13]} 15. Rd2 {[%emt 0:07:05]} f5 {[%emt 0:05:59]} 16. Rfd1 {[%emt 0:01:30]} f4 {[%emt 0:00:24]} 17. Nf1 {[%emt 0:00:38]} Rd8 {[%emt 0:00:08]} 18. Rxd8+ {[%emt 0:03:15]} Bxd8 {[%emt 0:02:38]} 19. Bb5 {[%emt 0:00:19]} Bf6 {[%emt 0:08:01]} 20. Nd4 {[%emt 0:02:44]} Bxd4 {[%emt 0:00:56]} 21. Rxd4 {[%emt 0:07:07]} e5 {[%emt 0:00:30]} 22. Rd5 {[%emt 0:05:23]} f6 {[%emt 0:00:30]} 23. f3 {[%emt 0:04:12]} Ke7 {[%emt 0:04:36]} 24. Bxc6 {[%emt 0:02:02]} bxc6 {[%emt 0:00:02]} 25. Ra5 {[%emt 0:00:13]} Ra8 {[%emt 0:02:57]} 26. Kf2 {[%emt 0:01:47]} Kd6 {[%emt 0:00:43]} 27. Nd2 {[%emt 0:01:49]} Kc7 {[%emt 0:00:12]} 28. Ne4 {[%emt 0:00:39]} 1/2-1/2

[Event "CAT-chT 2020"]
[Site "Catalonia"]
[Date "2020.02.01"]
[Round "3.10"]
[White "Pau Plana, Albert"]
[Black "Llopis de Aysa, Manuel"]
[Result "1-0"]
[ECO "A42"]
[WhiteElo "1934"]
[BlackElo "2066"]
[Annotator "NA RC"]
[PlyCount "111"]
[EventDate "2020.01.18"]
[EventType "team-tourn"]
[EventCountry "ESP"]
[SourceTitle "playchess.com"]
[Source "ChessBase"]
[SourceQuality "1"]
[TimeControl "5400+30"]

1. d4 {[%emt 0:00:00]} g6 {[%emt 0:00:00]} 2. c4 {[%emt 0:01:09]} Bg7 {[%emt 0:00:00]} 3. Nc3 {[%emt 0:00:20]} d6 {[%emt 0:00:13]} 4. e4 {[%emt 0:03:25]} e5 {[%emt 0:00:18]} 5. d5 {[%emt 0:02:06]} a5 {[%emt 0:00:16]} 6. Be3 {[%emt 0:01:59]} Na6 {[%emt 0:00:26] A42: Modern Defence: Averbakh Variation} 7. h3 {[%emt 0:06:57]} Nf6 {[%emt 0:16:16]} 8. g4 {[%emt 0:03:30] [#]} h5 $146 {[%emt 0:02:48]} ({Predecessor:} 8... Nd7 9. Nge2 Bf6 10. Qd2 h6 11. O-O-O Bg5 12. f4 exf4 13. Nxf4 Ne5 14. Be2 Qe7 {0-1 (41) Batsiashvili,N (2447)-Praggnanandhaa,R (2586) Sitges 2019}) 9. g5 {[%emt 0:04:53]} Nh7 {[%emt 0:00:24]} 10. h4 {[%emt 0:01:10]} f6 {[%emt 0:15:13]} 11. Qd2 {[%emt 0:13:10]} O-O {[%emt 0:04:56]} 12. Bh3 {[%emt 0:03:24]} f5 {[%emt 0:09:38]} 13. exf5 {[%emt 0:04:21]} Bxf5 {[%emt 0:00:11]} 14. Bxf5 {[%emt 0:08:20]} Rxf5 {[%emt 0:00:08]} 15. Nge2 {[%emt 0:01:26]} Nf8 {[%emt 0:07:04]} 16. Ng3 {[%emt 0:01:23]} Rf7 {[%emt 0:03:26]} 17. O-O-O {[%emt 0:01:37]} Qd7 {[%emt 0:03:22]} 18. Qe2 {[%emt 0:05:16]} a4 {[%emt 0:02:33]} 19. Nge4 {[%emt 0:06:35]} b6 {[%emt 0:04:19]} 20. Rdg1 {[%emt 0:05:26]} Qf5 {[%emt 0:03:45]} 21. Ng3 {[%emt 0:01:02]} Qf3 {[%emt 0:07:02]} 22. Qxf3 {[%emt 0:01:08]} Rxf3 {[%emt 0:00:03]} 23. Nge4 {[%emt 0:02:49]} Nd7 {[%emt 0:04:05]} 24. Kd2 {[%emt 0:02:00]} Nac5 {[%emt 0:02:19]} 25. Ke2 {[%emt 0:01:19]} Rf7 {[%emt 0:01:31]} 26. Rb1 {[%emt 0:02:58]} Nxe4 {[%emt 0:03:13]} 27. Nxe4 {[%emt 0:00:04]} Nc5 {[%emt 0:00:48]} 28. Nxc5 {[%emt 0:02:36]} bxc5 {[%emt 0:00:50]} 29. Kd3 {[%emt 0:00:34]} e4+ {[%emt 0:04:07]} 30. Kxe4 {[%emt 0:00:46]} Re8+ {[%emt 0:00:56]} (30... Be5 $11) 31. Kd3 {[%emt 0:00:08]} Bd4 {[%emt 0:00:52]} 32. Rh3 {[%emt 0:03:16]} Ref8 {[%emt 0:01:16]} 33. b4 {[%emt 0:01:37]} axb3 {[%emt 0:00:19]} 34. Rxb3 {[%emt 0:00:14]} Ra8 {[%emt 0:01:09]} 35. a3 {[%emt 0:01:40]} Bxe3 {[%emt 0:01:27]} 36. fxe3 {[%emt 0:00:23]} Rf1 {[%emt 0:00:42]} 37. Rh2 {[%emt 0:01:41]} Rd1+ {[%emt 0:00:32]} 38. Kc2 {[%emt 0:00:49]} Rf1 {[%emt 0:00:31]} 39. Kb2 {[%emt 0:01:08]} Re8 {[%emt 0:00:54]} (39... Rf3 $11) 40. a4 {[%emt 0:02:01]} Re4 {[%emt 0:00:46]} 41. a5 {[%emt 0:01:07]} Rxc4 $2 {[%emt 0:00:19]} (41... Rf8 $16 {is a better chance.}) 42. a6 {[%emt 0:00:09]} Ra4 {[%emt 0:01:11]} 43. Ra3 {[%emt 0:00:08]} Rb4+ {[%emt 0:00:28]} 44. Kc3 {[%emt 0:02:39]} Rf8 {[%emt 0:00:37]} 45. a7 {[%emt 0:00:58]} Ra8 {[%emt 0:00:13]} 46. Rb2 {[%emt 0:00:58]} Rxb2 {[%emt 0:00:13]} 47. Kxb2 {[%emt 0:00:07]} Kf7 {[%emt 0:00:17]} 48. Kc3 {[%emt 0:00:25]} Ke7 {[%emt 0:00:41]} 49. Kc4 {[%emt 0:00:14]} Kd7 {[%emt 0:00:34]} 50. Kb5 {[%emt 0:00:18]} Kc8 {[%emt 0:01:13]} 51. Ka6 {[%emt 0:01:05]} c6 {[%emt 0:00:30]} 52. dxc6 $18 {[%emt 0:00:50]} (52. e4 $142 cxd5 53. exd5 Kc7 54. Rf3 Kd7 55. Rf7+ Ke8 56. Rb7 Rxa7+ 57. Kxa7) 52... Kc7 {[%emt 0:00:11]} 53. Rb3 {[%emt 0:01:02]} c4 {[%emt 0:00:43]} 54. Rb7+ {[%emt 0:00:42]} Kxc6 {[%emt 0:00:38]} 55. Rb8 {[%emt 0:00:19]} Rxa7+ {[%emt 0:00:21]} 56. Kxa7 {[%emt 0:00:06]} 1-0

[Event "CAT-chT 2020"]
[Site "Catalonia"]
[Date "2020.02.08"]
[Round "4.1"]
[White "Gonzalez Garcia, Jose"]
[Black "Perez Mitjans, Orelvis"]
[Result "1/2-1/2"]
[ECO "A43"]
[WhiteElo "2494"]
[BlackElo "2421"]
[Annotator "ChessBase"]
[PlyCount "63"]
[EventDate "2020.01.18"]
[EventType "team-tourn"]
[EventCountry "ESP"]
[SourceTitle "playchess.com"]
[Source "ChessBase"]
[SourceQuality "1"]
[TimeControl "5400+30"]

1. d4 c5 2. d5 Nf6 3. Nc3 d6 4. e4 g6 5. Nf3 Bg7 6. Be2 O-O 7. O-O Bg4 8. Nd2 Bxe2 9. Qxe2 Na6 10. Nc4 Nc7 11. a4 a6 12. a5 Nd7 13. Bg5 Nb5 14. Na4 Qe8 15. c3 e5 16. Na3 Nxa3 17. Rxa3 f5 18. c4 f4 19. f3 Bf6 20. Bxf6 Rxf6 21. Qd2 Qd8 22. b4 Qc7 23. Rb1 g5 24. bxc5 Nxc5 25. Qb4 Nxa4 26. Rxa4 Rf7 27. Qb6 Rc8 28. Qxc7 Rcxc7 29. Rb6 Rfd7 30. Rab4 Kf8 31. h3 Ke7 32. Kf2 1/2-1/2

[Event "CAT-chT 2020"]
[Site "Catalonia"]
[Date "2020.02.08"]
[Round "4.2"]
[White "Fluvia Poyatos, Joan"]
[Black "Comas Fabrego, Lluis"]
[Result "1/2-1/2"]
[ECO "C01"]
[WhiteElo "2462"]
[BlackElo "2465"]
[Annotator "ChessBase"]
[PlyCount "114"]
[EventDate "2020.01.18"]
[EventType "team-tourn"]
[EventCountry "ESP"]
[SourceTitle "playchess.com"]
[Source "ChessBase"]
[SourceQuality "1"]
[TimeControl "5400+30"]

1. d4 e6 2. e4 d5 3. exd5 exd5 4. Nf3 Nc6 5. Bb5 Bd6 6. c4 dxc4 7. d5 a6 8. Ba4 b5 9. dxc6 bxa4 10. O-O Ne7 11. Nbd2 O-O 12. Nxc4 Nxc6 13. Qxa4 Qd7 14. Rd1 Nd4 15. Qxd7 Nxf3+ 16. gxf3 Bxd7 17. Nxd6 cxd6 18. Rxd6 Be6 19. Be3 a5 20. a4 Rfb8 21. Bd4 Rd8 22. Rxd8+ Rxd8 23. Bc3 Rd5 24. f4 f6 25. Kf1 Kf7 26. Ke2 Bc8 27. Ke3 Ba6 28. f3 Rd3+ 29. Kf2 Rd5 30. Rc1 Ke6 31. Be1 Kd7 32. Bc3 Ke6 33. Re1+ Kf7 34. h4 Bc4 35. Rc1 Bb3 36. Ra1 Bc2 37. Ke3 Rd3+ 38. Ke2 Rd5 39. Ra3 Rd3 40. Ra2 Rd5 41. Kf2 Bb3 42. Ra3 Bc2 43. Ra1 h6 44. Ra2 Bb3 45. Ra3 Bc2 46. Ra1 Kg6 47. Kg3 Kf7 48. Be1 Rd1 49. Rxd1 Bxd1 50. Bxa5 Bxa4 51. f5 h5 52. Kf4 Bc6 53. Bc3 g6 54. Ke3 gxf5 55. f4 Ke6 56. Kd4 Kd7 57. Kc5 Kc7 1/2-1/2

[Event "CAT-chT 2020"]
[Site "Catalonia"]
[Date "2020.02.08"]
[Round "4.3"]
[White "Asis Gargatagli, Hipolito"]
[Black "Ayats Llobera, Gerard"]
[Result "1/2-1/2"]
[ECO "B62"]
[WhiteElo "2490"]
[BlackElo "2375"]
[Annotator "ChessBase"]
[PlyCount "30"]
[EventDate "2020.01.18"]
[EventType "team-tourn"]
[EventCountry "ESP"]
[SourceTitle "playchess.com"]
[Source "ChessBase"]
[SourceQuality "1"]
[TimeControl "5400+30"]

1. e4 c5 2. Nf3 d6 3. d4 Nf6 4. Nc3 cxd4 5. Nxd4 Nc6 6. Bg5 e6 7. Bb5 Bd7 8. Qd3 Qa5 9. Nb3 Qc7 10. O-O-O a6 11. Bxc6 Bxc6 12. Bxf6 gxf6 13. Qh3 Be7 14. Rhe1 b5 15. Rd4 a5 1/2-1/2

[Event "CAT-chT 2020"]
[Site "Catalonia"]
[Date "2020.02.08"]
[Round "4.4"]
[White "Beltran Rueda, Santiago"]
[Black "Moskalenko, Viktor"]
[Result "0-1"]
[ECO "A29"]
[WhiteElo "2332"]
[BlackElo "2471"]
[Annotator "ChessBase"]
[PlyCount "56"]
[EventDate "2020.01.18"]
[EventType "team-tourn"]
[EventCountry "ESP"]
[SourceTitle "playchess.com"]
[Source "ChessBase"]
[SourceQuality "1"]
[TimeControl "5400+30"]

1. c4 e5 2. Nc3 Nf6 3. g3 Bb4 4. Bg2 O-O 5. Nf3 e4 6. Nd4 Re8 7. O-O Nc6 8. Nc2 Bxc3 9. dxc3 h6 10. Ne3 d6 11. Qc2 Ne5 12. b3 Neg4 13. h3 Nxe3 14. Bxe3 Qe7 15. Rad1 Bf5 16. Kh2 b6 17. Qc1 Bg6 18. Rfe1 Nd7 19. f4 f5 20. Rd2 h5 21. h4 Nf6 22. Bh3 Qe6 23. Bd4 e3 24. Rd3 Ng4+ 25. Bxg4 fxg4 26. Rxe3 Be4 27. f5 Qxf5 28. Rf1 Qg6 0-1

[Event "CAT-chT 2020"]
[Site "Catalonia"]
[Date "2020.02.08"]
[Round "4.4"]
[White "Cruz, Filemon"]
[Black "Bofill Mas, Alejandro"]
[Result "1/2-1/2"]
[ECO "A04"]
[WhiteElo "2302"]
[BlackElo "2323"]
[Annotator "ChessBase"]
[PlyCount "26"]
[EventDate "2020.01.18"]
[EventType "team-tourn"]
[EventCountry "ESP"]
[SourceTitle "playchess.com"]
[Source "ChessBase"]
[SourceQuality "1"]
[TimeControl "5400+30"]

1. Nf3 {[%emt 0:03:44]} c5 {[%emt 0:00:10]} 2. b3 {[%emt 0:01:00]} d6 {[%emt 0:01:50]} 3. g3 {[%emt 0:01:06]} e5 {[%emt 0:00:53]} 4. d3 {[%emt 0:00:51]} g6 {[%emt 0:01:14]} 5. Bb2 {[%emt 0:00:10]} Bg7 {[%emt 0:00:06]} 6. c4 {[%emt 0:03:18]} Ne7 {[%emt 0:00:53]} 7. Nc3 {[%emt 0:00:32]} O-O {[%emt 0:00:59]} 8. Bg2 {[%emt 0:00:31]} Nbc6 {[%emt 0:02:13]} 9. O-O {[%emt 0:02:25]} h6 {[%emt 0:00:46]} 10. Nd2 {[%emt 0:01:35]} Bg4 {[%emt 0:04:05]} 11. h3 {[%emt 0:01:33]} Be6 {[%emt 0:00:33]} 12. Rc1 {[%emt 0:03:21]} Qd7 {[%emt 0:06:27]} 13. Kh2 {[%emt 0:00:49]} f5 {[%emt 0:03:05]} 1/2-1/2

[Event "CAT-chT 2020"]
[Site "Catalonia"]
[Date "2020.02.08"]
[Round "4.5"]
[White "Lorenzo De La Riva, Lazaro"]
[Black "Hapala, Elisabeth"]
[Result "1/2-1/2"]
[ECO "A15"]
[WhiteElo "2402"]
[BlackElo "2170"]
[Annotator "ChessBase"]
[PlyCount "145"]
[EventDate "2020.01.18"]
[EventType "team-tourn"]
[EventCountry "ESP"]
[SourceTitle "playchess.com"]
[Source "ChessBase"]
[SourceQuality "1"]
[TimeControl "5400+30"]

1. c4 {[%emt 0:03:01]} Nf6 {[%emt 0:00:41]} 2. Nf3 {[%emt 0:01:47]} e6 {[%emt 0:02:14]} 3. e3 {[%emt 0:01:04]} d5 {[%emt 0:03:35]} 4. b3 {[%emt 0:00:31]} Be7 {[%emt 0:03:32]} 5. Bb2 {[%emt 0:04:34]} O-O {[%emt 0:00:54]} 6. Qc2 {[%emt 0:04:18]} c5 {[%emt 0:01:25]} 7. cxd5 {[%emt 0:04:25]} Nxd5 {[%emt 0:20:06]} 8. a3 {[%emt 0:05:20]} b6 {[%emt 0:00:56]} 9. h4 {[%emt 0:04:53]} Bf6 {[%emt 0:13:46]} 10. Ng5 {[%emt 0:02:39]} g6 {[%emt 0:00:10]} 11. Ne4 {[%emt 0:10:29]} Bxb2 {[%emt 0:01:52]} 12. Qxb2 {[%emt 0:00:59]} f5 {[%emt 0:08:49]} 13. Ng5 {[%emt 0:01:56]} Qf6 {[%emt 0:05:20]} 14. Qxf6 {[%emt 0:00:49]} Nxf6 {[%emt 0:01:34]} 15. Nc3 {[%emt 0:12:29]} h6 {[%emt 0:06:16]} 16. Nh3 {[%emt 0:04:45]} Nc6 {[%emt 0:03:47]} 17. Nf4 {[%emt 0:01:56]} g5 {[%emt 0:12:27]} 18. hxg5 {[%emt 0:01:44]} hxg5 {[%emt 0:00:01]} 19. Ng6 {[%emt 0:03:39]} Re8 {[%emt 0:00:04]} 20. Bb5 {[%emt 0:01:43]} Bd7 {[%emt 0:01:29]} 21. Bxc6 {[%emt 0:00:12]} Bxc6 {[%emt 0:00:06]} 22. Ne5 {[%emt 0:00:04]} Bxg2 {[%emt 0:05:07]} 23. Rg1 {[%emt 0:02:35]} Bb7 {[%emt 0:01:43]} 24. Rxg5+ {[%emt 0:00:07]} Kf8 {[%emt 0:00:02]} 25. O-O-O {[%emt 0:02:41]} Rac8 {[%emt 0:05:58]} 26. Rdg1 {[%emt 0:03:06]} Rc7 {[%emt 0:00:06]} 27. Nb5 {[%emt 0:00:43]} Rh7 {[%emt 0:00:05]} 28. Ng6+ {[%emt 0:04:22]} Kg7 {[%emt 0:00:25]} 29. Nd6 {[%emt 0:00:06]} Rb8 {[%emt 0:00:03]} 30. Nf4+ {[%emt 0:01:38]} Kf8 {[%emt 0:00:01]} 31. Rg6 {[%emt 0:01:29]} Ke7 {[%emt 0:00:55]} 32. Nc4 {[%emt 0:01:33]} Bd5 {[%emt 0:01:33]} 33. Ne5 {[%emt 0:00:13]} Kd6 {[%emt 0:00:46]} 34. Rxf6 {[%emt 0:02:03]} Kxe5 {[%emt 0:00:01]} 35. Rgg6 {[%emt 0:00:06]} Re8 {[%emt 0:00:59]} 36. Kb2 {[%emt 0:00:01]} Rh2 {[%emt 0:00:20]} 37. Kc3 {[%emt 0:00:02]} Kd6 {[%emt 0:00:45]} 38. Rxf5 {[%emt 0:00:10]} Be4 {[%emt 0:00:26]} 39. Rff6 {[%emt 0:01:48]} Bxg6 {[%emt 0:00:02]} 40. Nxg6 {[%emt 0:00:02]} Kd5 {[%emt 0:01:01]} 41. Rf7 {[%emt 0:00:43]} e5 {[%emt 0:00:30]} 42. f4 {[%emt 0:02:18]} exf4 {[%emt 0:00:01]} 43. Nxf4+ {[%emt 0:00:06]} Kc6 {[%emt 0:00:02]} 44. Rxa7 {[%emt 0:00:08]} Rd8 {[%emt 0:00:35]} 45. d3 {[%emt 0:00:16]} Re8 {[%emt 0:01:19]} 46. e4 {[%emt 0:00:28]} Rf8 {[%emt 0:00:31]} 47. Nd5 {[%emt 0:00:44]} Rff2 {[%emt 0:00:06]} 48. Rc7+ {[%emt 0:00:22]} Kd6 {[%emt 0:00:01]} 49. Kc4 {[%emt 0:00:25]} Rc2+ {[%emt 0:01:15]} 50. Kb5 {[%emt 0:00:01]} Rhd2 {[%emt 0:00:33]} 51. Rc6+ {[%emt 0:00:21]} Ke5 {[%emt 0:00:21]} 52. Ne3 {[%emt 0:01:30]} Rxd3 {[%emt 0:00:48]} 53. Nxc2 {[%emt 0:00:04]} Rxb3+ {[%emt 0:00:02]} 54. Kc4 {[%emt 0:00:34]} Rb2 {[%emt 0:00:23]} 55. Kc3 {[%emt 0:00:37]} Rb1 {[%emt 0:00:08]} 56. Ne3 {[%emt 0:04:01]} Kxe4 {[%emt 0:01:01]} 57. Re6+ {[%emt 0:00:19]} Kf3 {[%emt 0:00:46]} 58. Nc4 {[%emt 0:03:38]} Rc1+ {[%emt 0:00:04]} 59. Kd3 {[%emt 0:00:02]} b5 {[%emt 0:00:14]} 60. Rf6+ {[%emt 0:00:01]} Kg3 {[%emt 0:00:12]} 61. Nd2 {[%emt 0:00:30]} Ra1 {[%emt 0:00:58]} 62. Ra6 {[%emt 0:00:18]} Kf4 {[%emt 0:01:01]} 63. Kc2 {[%emt 0:00:19]} Ra2+ {[%emt 0:00:20]} 64. Kc1 {[%emt 0:00:05]} Ke3 {[%emt 0:00:50]} 65. Rh6 {[%emt 0:05:30]} b4 {[%emt 0:00:31]} 66. Nc4+ {[%emt 0:00:29]} Kd4 {[%emt 0:00:28]} 67. Rh4+ {[%emt 0:01:56]} Kc3 {[%emt 0:00:01]} 68. Kb1 {[%emt 0:00:46]} Re2 {[%emt 0:00:43]} 69. axb4 {[%emt 0:00:30]} Re1+ {[%emt 0:00:46]} 70. Ka2 {[%emt 0:00:07]} cxb4 {[%emt 0:00:05]} 71. Na5 {[%emt 0:00:35]} Re2+ {[%emt 0:00:35]} 72. Kb1 {[%emt 0:00:01]} Re1+ {[%emt 0:00:53]} 73. Ka2 1/2-1/2